[Event "32nd NATO Chess Championship"]
[Site "Tartu, Estonia"]
[Date "2022.06.29"]
[Round "4.19"]
[White "Duren, Andrew"]
[Black "Simard, Francois"]
[Result "1-0"]
[TimeControl "90 min + 30 sec increment from move one"]
[WhiteFideId "2019663"]
[BlackFideId "2621681"]
[WhiteElo "1997"]
[BlackElo "1757"]

1. d4 {[%clk 01:30:58]} {[%emt 00:00:03]} d5 {[%clk 01:30:43]} {[%emt
00:00:16]} 2. Bf4 {[%clk 01:31:21]} {[%emt 00:00:06]} e6 {[%clk 01:30:39]}
{[%emt 00:00:35]} 3. e3 {[%clk 01:31:42]} {[%emt 00:00:09]} Nf6 {[%clk
01:30:43]} {[%emt 00:00:26]} 4. Nd2 {[%clk 01:31:29]} {[%emt 00:00:42]} Bd6
{[%clk 01:30:37]} {[%emt 00:00:37]} 5. Bg3 {[%clk 01:31:51]} {[%emt 00:00:07]}
O-O {[%clk 01:30:57]} {[%emt 00:00:10]} 6. Ngf3 {[%clk 01:31:58]} {[%emt
00:00:23]} c5 {[%clk 01:28:20]} {[%emt 00:03:07]} 7. c3 {[%clk 01:32:17]}
{[%emt 00:00:10]} Nc6 {[%clk 01:27:33]} {[%emt 00:01:18]} 8. Bd3 {[%clk
01:29:49]} {[%emt 00:02:56]} b6 {[%clk 01:27:32]} {[%emt 00:00:32]} 9. Ne5
{[%clk 01:23:29]} {[%emt 00:06:51]} Qc7 {[%clk 01:24:47]} {[%emt 00:03:15]} 10.
f4 {[%clk 01:22:13]} {[%emt 00:01:46]} Re8 {[%clk 01:20:16]} {[%emt 00:05:02]}
11. Bh4 {[%clk 01:17:15]} {[%emt 00:05:29]} Nd7 {[%clk 01:15:40]} {[%emt
00:05:05]} 12. Bxh7+ {[%clk 01:17:23]} {[%emt 00:00:21]} Kf8 {[%clk 01:15:10]}
{[%emt 00:01:01]} 13. Qh5 {[%clk 01:13:01]} {[%emt 00:04:51]} Ndxe5 {[%clk
01:14:35]} {[%emt 00:01:07]} 14. fxe5 {[%clk 01:12:56]} {[%emt 00:00:34]} Be7
{[%clk 01:14:44]} {[%emt 00:00:21]} 15. O-O {[%clk 01:12:22]} {[%emt 00:01:04]}
Bxh4 {[%clk 01:15:01]} {[%emt 00:00:13]} 16. Bg6 {[%clk 01:09:31]} {[%emt
00:03:21]} Bf6 {[%clk 01:13:38]} {[%emt 00:01:53]} 17. exf6 {[%clk 01:09:51]}
{[%emt 00:00:10]} fxg6 {[%clk 01:12:11]} {[%emt 00:01:57]} 18. Qh8+ {[%clk
01:10:14]} {[%emt 00:00:06]} 1-0

[Event "32nd NATO Chess Championship"]
[Site "Tartu, Estonia"]
[Date "2022.06.29"]
[Round "4.20"]
[White "Tikerpuu, Mati"]
[Black "Nielsen, Jan Mose"]
[Result "1-0"]
[TimeControl "90 min + 30 sec increment from move one"]
[WhiteFideId "4505905"]
[BlackFideId "1405306"]
[WhiteElo "1819"]
[BlackElo "1991"]

1. b4 {[%clk 01:30:54]} {[%emt 00:00:05]} h5 {[%clk 01:30:33]} {[%emt
00:00:28]} 2. Bb2 {[%clk 01:30:30]} {[%emt 00:00:54]} h4 {[%clk 01:30:56]}
{[%emt 00:00:07]} 3. h3 {[%clk 01:28:45]} {[%emt 00:02:13]} d5 {[%clk
01:29:56]} {[%emt 00:01:30]} 4. e3 {[%clk 01:27:47]} {[%emt 00:01:29]} Nf6
{[%clk 01:20:07]} {[%emt 00:10:19]} 5. c4 {[%clk 01:26:22]} {[%emt 00:01:54]}
e6 {[%clk 01:09:09]} {[%emt 00:11:29]} 6. a3 {[%clk 01:22:12]} {[%emt
00:04:40]} b6 {[%clk 01:05:51]} {[%emt 00:03:48]} 7. Nf3 {[%clk 01:20:12]}
{[%emt 00:02:30]} Nbd7 {[%clk 01:03:29]} {[%emt 00:02:52]} 8. d4 {[%clk
01:18:05]} {[%emt 00:02:37]} dxc4 {[%clk 01:00:06]} {[%emt 00:03:53]} 9. Bxc4
{[%clk 01:18:15]} {[%emt 00:00:19]} Bb7 {[%clk 01:00:31]} {[%emt 00:00:06]} 10.
Nc3 {[%clk 01:16:10]} {[%emt 00:02:36]} Bd6 {[%clk 00:57:00]} {[%emt 00:03:58]}
11. O-O {[%clk 01:12:11]} {[%emt 00:04:31]} Qe7 {[%clk 00:55:21]} {[%emt
00:02:09]} 12. Qe2 {[%clk 01:07:10]} {[%emt 00:05:30]} c5 {[%clk 00:45:15]}
{[%emt 00:10:37]} 13. Ba6 {[%clk 00:52:00]} {[%emt 00:15:40]} Bxa6 {[%clk
00:32:11]} {[%emt 00:13:35]} 14. Qxa6 {[%clk 00:51:57]} {[%emt 00:00:32]} cxb4
{[%clk 00:23:18]} {[%emt 00:09:23]} 15. Nb5 {[%clk 00:48:00]} {[%emt 00:04:27]}
O-O {[%clk 00:17:17]} {[%emt 00:06:30]} 16. Nxd6 {[%clk 00:46:41]} {[%emt
00:01:50]} Qxd6 {[%clk 00:17:44]} {[%emt 00:00:02]} 17. axb4 {[%clk 00:46:59]}
{[%emt 00:00:13]} Rfc8 {[%clk 00:15:25]} {[%emt 00:02:48]} 18. b5 {[%clk
00:44:49]} {[%emt 00:02:41]} Rc2 {[%clk 00:13:30]} {[%emt 00:02:24]} 19. Ba3
{[%clk 00:41:51]} {[%emt 00:03:29]} Qd5 {[%clk 00:12:51]} {[%emt 00:01:09]} 20.
Qa4 {[%clk 00:38:20]} {[%emt 00:04:00]} Rac8 {[%clk 00:11:31]} {[%emt
00:01:50]} 21. Rfc1 {[%clk 00:36:39]} {[%emt 00:02:11]} R8c4 {[%clk 00:08:08]}
{[%emt 00:03:53]} 22. Qxa7 {[%clk 00:33:55]} {[%emt 00:03:15]} Qxb5 {[%clk
00:07:11]} {[%emt 00:01:27]} 23. Qa8+ {[%clk 00:30:36]} {[%emt 00:03:49]} Kh7
{[%clk 00:06:44]} {[%emt 00:00:57]} 24. Rxc2 {[%clk 00:26:58]} {[%emt
00:04:09]} Rxc2 {[%clk 00:07:06]} {[%emt 00:00:08]} 25. Nxh4 {[%clk 00:15:46]}
{[%emt 00:11:42]} Nd5 {[%clk 00:05:44]} {[%emt 00:01:52]} 26. Bd6 {[%clk
00:14:11]} {[%emt 00:02:04]} Qe2 {[%clk 00:01:36]} {[%emt 00:04:39]} 27. Bg3
{[%clk 00:14:26]} {[%emt 00:00:15]} Nxe3 {[%clk 00:00:57]} {[%emt 00:01:09]} 28.
Qe4+ {[%clk 00:12:33]} {[%emt 00:02:22]} Nf5 {[%clk 00:01:16]} {[%emt
00:00:12]} 29. Qxe2 {[%clk 00:12:48]} {[%emt 00:00:14]} Rxe2 {[%clk 00:01:42]}
{[%emt 00:00:04]} 30. Nxf5 {[%clk 00:12:55]} {[%emt 00:00:23]} exf5 {[%clk
00:02:10]} {[%emt 00:00:02]} 31. Ra7 {[%clk 00:11:56]} {[%emt 00:01:29]} Nf6
{[%clk 00:01:45]} {[%emt 00:00:55]} 32. Rxf7 {[%clk 00:11:34]} {[%emt
00:00:52]} Kg6 {[%clk 00:02:06]} {[%emt 00:00:08]} 33. Rb7 {[%clk 00:11:51]}
{[%emt 00:00:13]} Re1+ {[%clk 00:01:32]} {[%emt 00:01:05]} 34. Kh2 {[%clk
00:12:12]} Rb1 {[%clk 00:01:42]} {[%emt 00:00:27]} 35. Be5 {[%clk 00:12:00]}
Rb3 {[%clk 00:01:23]} {[%emt 00:01:32]} 36. f3 {[%clk 00:11:54]} Rb5 {[%clk
00:00:45]} {[%emt 00:01:45]} 37. Kg3 {[%clk 00:08:57]} {[%emt 00:03:27]} Rb3
{[%clk 00:00:40]} {[%emt 00:00:35]} 38. Kh4 {[%clk 00:07:52]} {[%emt 00:01:34]}
Rb2 {[%clk 00:00:47]} {[%emt 00:00:23]} 39. g4 {[%clk 00:07:56]} {[%emt
00:00:26]} fxg4 {[%clk 00:00:54]} {[%emt 00:00:23]} 40. fxg4 {[%clk 00:08:05]}
{[%emt 00:00:21]} Rb3 {[%clk 00:00:48]} {[%emt 00:00:36]} 41. g5 {[%clk
00:08:10]} {[%emt 00:00:26]} Nh5 {[%clk 00:00:48]} {[%emt 00:00:30]} 42. Kg4
{[%clk 00:06:14]} {[%emt 00:02:26]} Rb4 {[%clk 00:00:51]} {[%emt 00:00:27]} 43.
Rc7 {[%clk 00:06:01]} {[%emt 00:00:43]} 1-0

[Event "32nd NATO Chess Championship"]
[Site "Tartu, Estonia"]
[Date "2022.06.29"]
[Round "4.21"]
[White "Jauk, Wilhelm"]
[Black "Graham, Frazer"]
[Result "1-0"]
[TimeControl "90 min + 30 sec increment from move one"]
[WhiteFideId "24681067"]
[BlackFideId "479993"]
[WhiteElo "2156"]
[BlackElo "1864"]

1. d4 {[%clk 01:30:56]} {[%emt 00:00:03]} c5 {[%clk 01:30:48]} {[%emt
00:00:12]} 2. c3 {[%clk 01:30:31]} {[%emt 00:00:56]} e6 {[%clk 01:30:50]}
{[%emt 00:00:27]} 3. Nf3 {[%clk 01:30:47]} {[%emt 00:00:14]} d5 {[%clk
01:31:07]} {[%emt 00:00:13]} 4. Bf4 {[%clk 01:30:52]} {[%emt 00:00:25]} Nf6
{[%clk 01:30:45]} {[%emt 00:00:52]} 5. e3 {[%clk 01:30:54]} {[%emt 00:00:28]}
Bd6 {[%clk 01:29:24]} {[%emt 00:01:51]} 6. Ne5 {[%clk 01:25:04]} {[%emt
00:06:20]} O-O {[%clk 01:28:26]} {[%emt 00:01:28]} 7. Nd2 {[%clk 01:25:08]}
{[%emt 00:00:27]} Bxe5 {[%clk 01:25:44]} {[%emt 00:03:12]} 8. Bxe5 {[%clk
01:25:14]} {[%emt 00:00:23]} b6 {[%clk 01:22:37]} {[%emt 00:03:38]} 9. Rc1
{[%clk 01:21:12]} {[%emt 00:04:31]} Nfd7 {[%clk 01:17:32]} {[%emt 00:05:35]} 10.
Bg3 {[%clk 01:19:26]} {[%emt 00:02:16]} Nc6 {[%clk 01:15:57]} {[%emt 00:02:05]}
11. Be2 {[%clk 01:14:21]} {[%emt 00:05:35]} e5 {[%clk 01:04:11]} {[%emt
00:12:16]} 12. dxe5 {[%clk 00:58:58]} {[%emt 00:15:54]} Ndxe5 {[%clk 01:01:02]}
{[%emt 00:03:39]} 13. O-O {[%clk 00:58:46]} {[%emt 00:00:41]} Bf5 {[%clk
00:58:14]} {[%emt 00:03:18]} 14. Nf3 {[%clk 00:57:46]} {[%emt 00:01:31]} Re8
{[%clk 00:55:14]} {[%emt 00:03:30]} 15. Qa4 {[%clk 00:40:12]} {[%emt 00:18:03]}
Qf6 {[%clk 00:43:33]} {[%emt 00:12:12]} 16. Rfd1 {[%clk 00:38:53]} {[%emt
00:01:48]} Bg4 {[%clk 00:30:50]} {[%emt 00:13:14]} 17. Rxd5 {[%clk 00:30:12]}
{[%emt 00:09:10]} Nxf3+ {[%clk 00:22:07]} {[%emt 00:09:12]} 18. gxf3 {[%clk
00:23:48]} {[%emt 00:06:55]} Ne7 {[%clk 00:20:08]} {[%emt 00:02:30]} 19. Rd6
{[%clk 00:22:35]} {[%emt 00:01:41]} Be6 {[%clk 00:20:18]} {[%emt 00:00:21]} 20.
Rcd1 {[%clk 00:20:10]} {[%emt 00:02:55]} Nf5 {[%clk 00:20:27]} {[%emt
00:00:23]} 21. R6d2 {[%clk 00:20:22]} {[%emt 00:00:18]} Nxg3 {[%clk 00:20:06]}
{[%emt 00:00:51]} 22. hxg3 {[%clk 00:20:39]} {[%emt 00:00:12]} g6 {[%clk
00:19:21]} {[%emt 00:01:15]} 23. Kg2 {[%clk 00:19:47]} {[%emt 00:01:22]} a6
{[%clk 00:17:08]} {[%emt 00:02:43]} 24. Rd6 {[%clk 00:17:39]} {[%emt 00:02:36]}
b5 {[%clk 00:16:56]} {[%emt 00:00:44]} 25. Qa3 {[%clk 00:16:54]} {[%emt
00:01:14]} Rec8 {[%clk 00:17:03]} {[%emt 00:00:24]} 26. g4 {[%clk 00:15:20]}
{[%emt 00:02:04]} b4 {[%clk 00:15:52]} {[%emt 00:01:42]} 27. cxb4 {[%clk
00:15:00]} {[%emt 00:00:50]} cxb4 {[%clk 00:16:16]} {[%emt 00:00:05]} 28. Qxb4
{[%clk 00:15:09]} {[%emt 00:00:21]} Rc2 {[%clk 00:15:39]} {[%emt 00:01:06]} 29.
R1d2 {[%clk 00:14:51]} {[%emt 00:00:48]} Rc1 {[%clk 00:15:46]} {[%emt
00:00:24]} 30. Qd4 {[%emt 00:04:40]} 1-0

[Event "32nd NATO Chess Championship"]
[Site "Tartu, Estonia"]
[Date "2022.06.29"]
[Round "4.23"]
[White "Heran-Boily, Samuel"]
[Black "Flaata, Alexander R."]
[Result "0-1"]
[TimeControl "90 min + 30 sec increment from move one"]
[WhiteFideId "1554565"]
[BlackFideId "1502026"]
[WhiteElo "1871"]
[BlackElo "2048"]

1. e4 {[%clk 01:30:55]} {[%emt 00:00:05]} c5 {[%clk 01:30:50]} {[%emt
00:00:08]} 2. Nf3 {[%clk 01:31:19]} {[%emt 00:00:06]} Nc6 {[%clk 01:31:00]}
{[%emt 00:00:21]} 3. Bc4 {[%clk 01:31:36]} {[%emt 00:00:14]} e6 {[%clk
01:30:39]} {[%emt 00:00:49]} 4. O-O {[%clk 01:31:51]} {[%emt 00:00:16]} d5
{[%clk 01:29:36]} {[%emt 00:01:33]} 5. exd5 {[%clk 01:32:11]} {[%emt 00:00:11]}
exd5 {[%clk 01:30:00]} {[%emt 00:00:05]} 6. Re1+ {[%clk 01:32:32]} {[%emt
00:00:09]} Be7 {[%clk 01:30:11]} {[%emt 00:00:19]} 7. Bb3 {[%clk 01:32:53]}
{[%emt 00:00:08]} Nf6 {[%clk 01:29:04]} {[%emt 00:01:37]} 8. c3 {[%clk
01:26:55]} {[%emt 00:06:29]} Bg4 {[%clk 01:25:57]} {[%emt 00:03:36]} 9. h3
{[%clk 01:26:44]} {[%emt 00:00:42]} Bh5 {[%clk 01:25:33]} {[%emt 00:00:53]} 10.
d3 {[%clk 01:26:08]} {[%emt 00:01:07]} O-O {[%clk 01:25:32]} {[%emt 00:00:31]}
11. Nbd2 {[%clk 01:25:59]} {[%emt 00:00:38]} Bg6 {[%clk 01:22:04]} {[%emt
00:03:58]} 12. Nf1 {[%clk 01:26:09]} {[%emt 00:00:20]} b5 {[%clk 01:20:14]}
{[%emt 00:02:20]} 13. Bg5 {[%clk 01:14:59]} {[%emt 00:11:41]} c4 {[%clk
01:18:51]} {[%emt 00:01:52]} 14. Bc2 {[%clk 01:13:34]} {[%emt 00:01:56]} Qc7
{[%clk 01:17:28]} {[%emt 00:01:53]} 15. Ng3 {[%clk 01:02:00]} {[%emt 00:12:04]}
Rfe8 {[%clk 01:12:32]} {[%emt 00:05:25]} 16. d4 {[%clk 00:50:05]} {[%emt
00:12:26]} b4 {[%clk 01:04:38]} {[%emt 00:08:24]} 17. Ba4 {[%clk 00:44:19]}
{[%emt 00:06:17]} Red8 {[%clk 00:52:03]} {[%emt 00:13:03]} 18. Bxc6 {[%clk
00:43:41]} {[%emt 00:01:08]} Rab8 {[%clk 00:51:46]} {[%emt 00:00:48]} 19. Ba4
{[%clk 00:42:02]} {[%emt 00:02:09]} bxc3 {[%clk 00:50:29]} {[%emt 00:01:46]} 20.
bxc3 {[%clk 00:42:14]} {[%emt 00:00:19]} Ba3 {[%clk 00:50:50]} {[%emt
00:00:09]} 21. Ne5 {[%clk 00:38:57]} {[%emt 00:03:47]} Bb2 {[%clk 00:50:13]}
{[%emt 00:01:07]} 22. Nxg6 {[%clk 00:38:36]} {[%emt 00:00:51]} hxg6 {[%clk
00:50:32]} {[%emt 00:00:11]} 23. Rb1 {[%clk 00:33:44]} {[%emt 00:05:22]} Bxc3
{[%clk 00:50:57]} {[%emt 00:00:05]} 24. Rxb8 {[%clk 00:32:55]} {[%emt
00:01:19]} Rxb8 {[%clk 00:51:21]} {[%emt 00:00:06]} 25. Bxf6 {[%clk 00:24:51]}
{[%emt 00:08:35]} Bxe1 {[%clk 00:51:23]} {[%emt 00:00:27]} 26. Be5 {[%clk
00:24:59]} {[%emt 00:00:22]} Bxf2+ {[%clk 00:51:43]} {[%emt 00:00:09]} 27. Kxf2
{[%clk 00:25:11]} {[%emt 00:00:18]} Rb2+ {[%clk 00:51:53]} {[%emt 00:00:20]} 28.
Kg1 {[%clk 00:23:37]} {[%emt 00:02:05]} Qa5 {[%clk 00:50:19]} {[%emt 00:02:04]}
29. Bc6 {[%clk 00:17:11]} {[%emt 00:06:56]} c3 {[%clk 00:50:22]} {[%emt
00:00:27]} 30. Qf3 {[%clk 00:13:03]} {[%emt 00:04:38]} c2 {[%clk 00:48:40]}
{[%emt 00:02:11]} 31. Ne2 {[%clk 00:10:46]} {[%emt 00:02:47]} Qe1+ {[%clk
00:48:05]} {[%emt 00:01:05]} 32. Kh2 {[%clk 00:11:03]} {[%emt 00:00:14]} Qxe2
{[%clk 00:46:38]} {[%emt 00:01:57]} 33. Qxe2 {[%clk 00:11:27]} {[%emt
00:00:06]} c1=Q {[%clk 00:47:00]} {[%emt 00:00:08]} 34. Qa6 {[%clk 00:11:13]}
{[%emt 00:00:44]} Rb1 {[%clk 00:38:29]} {[%emt 00:09:01]} 35. Bxd5 {[%clk
00:09:53]} {[%emt 00:01:50]} Qg1+ {[%clk 00:38:47]} {[%emt 00:00:11]} 36. Kg3
{[%clk 00:10:11]} {[%emt 00:00:12]} Qe1+ {[%clk 00:39:09]} {[%emt 00:00:05]} 37.
Kg4 {[%clk 00:09:04]} {[%emt 00:01:40]} Kh7 {[%clk 00:38:41]} {[%emt 00:00:58]}
38. Qxa7 {[%clk 00:06:41]} {[%emt 00:02:54]} g5 {[%clk 00:22:58]} {[%emt
00:16:12]} 39. Bg3 {[%clk 00:04:16]} {[%emt 00:02:55]} f5+ {[%clk 00:23:01]}
{[%emt 00:00:28]} 40. Kxf5 {[%clk 00:03:20]} {[%emt 00:01:26]} Qxg3 {[%clk
00:23:02]} {[%emt 00:00:29]} 41. Qa8 {[%clk 00:01:59]} {[%emt 00:01:52]} Qf4+
{[%clk 00:20:34]} {[%emt 00:02:56]} 42. Ke6 {[%clk 00:02:17]} {[%emt 00:00:14]}
Rb6+ {[%clk 00:20:35]} {[%emt 00:00:29]} 43. Bc6 {[%clk 00:01:59]} {[%emt
00:00:48]} Qe4+ {[%clk 00:19:34]} {[%emt 00:01:29]} 44. Kd6 {[%clk 00:01:49]}
{[%emt 00:00:42]} Qxd4+ {[%clk 00:19:16]} {[%emt 00:00:47]} 45. Kc7 {[%clk
00:02:07]} {[%emt 00:00:13]} Rb4 {[%clk 00:18:52]} {[%emt 00:00:54]} 46. Qf8
{[%clk 00:00:53]} {[%emt 00:01:44]} Qa7+ {[%clk 00:17:55]} {[%emt 00:01:27]} 47.
Kd6 {[%clk 00:01:04]} {[%emt 00:00:19]} Rd4+ {[%clk 00:17:39]} {[%emt
00:00:46]} 48. Ke5 {[%clk 00:01:18]} {[%emt 00:00:17]} Rf4 {[%clk 00:16:18]}
{[%emt 00:01:50]} 49. Qe8 {[%clk 00:00:34]} {[%emt 00:01:15]} Qd4+ {[%clk
00:15:17]} {[%emt 00:01:30]} 50. Ke6 {[%clk 00:00:52]} {[%emt 00:00:13]} Rf6+
{[%clk 00:15:37]} {[%emt 00:00:07]} 51. Kd5 {[%emt 00:01:03]} 0-1

[Event "32nd NATO Chess Championship"]
[Site "Tartu, Estonia"]
[Date "2022.06.29"]
[Round "4.24"]
[White "Koopmeiners, Karl"]
[Black "Voroblievas, Arturas"]
[Result "0-1"]
[TimeControl "90 min + 30 sec increment from move one"]
[WhiteFideId "24624373"]
[BlackFideId "12803430"]
[WhiteElo "1946"]
[BlackElo "1740"]

1. d4 {[%clk 01:30:51]} {[%emt 00:00:09]} d5 {[%clk 01:30:50]} {[%emt
00:00:10]} 2. c4 {[%clk 01:31:11]} {[%emt 00:00:11]} c6 {[%clk 01:31:12]}
{[%emt 00:00:07]} 3. Nf3 {[%clk 01:31:36]} {[%emt 00:00:04]} Nf6 {[%clk
01:31:31]} {[%emt 00:00:12]} 4. g3 {[%clk 01:31:44]} {[%emt 00:00:23]} Bg4
{[%clk 01:26:36]} {[%emt 00:05:24]} 5. Ne5 {[%clk 01:31:32]} {[%emt 00:00:41]}
Bf5 {[%clk 01:26:24]} {[%emt 00:00:42]} 6. cxd5 {[%clk 01:31:15]} {[%emt
00:00:48]} Qxd5 {[%clk 01:25:02]} {[%emt 00:01:50]} 7. f3 {[%clk 01:30:13]}
{[%emt 00:01:34]} Bxb1 {[%clk 01:21:15]} {[%emt 00:04:16]} 8. Rxb1 {[%clk
01:29:55]} {[%emt 00:00:48]} Qxa2 {[%clk 01:21:17]} {[%emt 00:00:27]} 9. Bd2
{[%clk 01:19:58]} {[%emt 00:10:28]} Qd5 {[%clk 01:16:51]} {[%emt 00:04:55]} 10.
Bc3 {[%clk 01:15:55]} {[%emt 00:04:34]} e6 {[%clk 01:16:30]} {[%emt 00:00:50]}
11. Bg2 {[%clk 01:13:02]} {[%emt 00:03:24]} Be7 {[%clk 01:14:28]} {[%emt
00:02:31]} 12. O-O {[%clk 01:11:59]} {[%emt 00:01:33]} Qd8 {[%clk 01:13:21]}
{[%emt 00:01:38]} 13. e4 {[%clk 01:10:06]} {[%emt 00:02:22]} O-O {[%clk
01:08:49]} {[%emt 00:05:02]} 14. b4 {[%clk 01:07:35]} {[%emt 00:03:01]} Qb6
{[%clk 01:02:30]} {[%emt 00:06:49]} 15. Kh1 {[%clk 01:04:09]} {[%emt 00:03:56]}
a6 {[%clk 01:00:35]} {[%emt 00:02:25]} 16. f4 {[%clk 00:59:01]} {[%emt
00:05:38]} Rd8 {[%clk 00:49:45]} {[%emt 00:11:20]} 17. Qb3 {[%clk 00:57:46]}
{[%emt 00:01:46]} Nbd7 {[%clk 00:40:41]} {[%emt 00:09:33]} 18. f5 {[%clk
00:54:20]} {[%emt 00:03:56]} Nxe5 {[%clk 00:40:22]} {[%emt 00:00:49]} 19. dxe5
{[%clk 00:54:10]} {[%emt 00:00:40]} Ng4 {[%clk 00:38:00]} {[%emt 00:02:50]} 20.
fxe6 {[%clk 00:52:02]} {[%emt 00:02:41]} Nf2+ {[%clk 00:25:54]} {[%emt
00:12:34]} 21. Rxf2 {[%clk 00:52:13]} {[%emt 00:00:20]} Qxf2 {[%clk 00:26:14]}
{[%emt 00:00:10]} 22. Rf1 {[%clk 00:52:15]} {[%emt 00:00:28]} Qe2 {[%clk
00:25:50]} {[%emt 00:00:53]} 23. exf7+ {[%clk 00:51:25]} {[%emt 00:01:21]} Kf8
{[%clk 00:25:48]} {[%emt 00:00:30]} 24. e6 {[%clk 00:49:47]} {[%emt 00:02:09]}
Rd3 {[%clk 00:21:08]} {[%emt 00:05:09]} 25. Qb2 {[%clk 00:20:13]} {[%emt
00:30:06]} Qxb2 {[%clk 00:20:06]} {[%emt 00:01:32]} 26. Bxb2 {[%clk 00:20:42]}
{[%emt 00:00:02]} Bxb4 {[%clk 00:19:07]} {[%emt 00:01:28]} 27. h4 {[%clk
00:19:49]} {[%emt 00:01:23]} a5 {[%clk 00:18:42]} {[%emt 00:00:55]} 28. Rb1
{[%clk 00:12:43]} {[%emt 00:07:36]} Rad8 {[%clk 00:18:32]} {[%emt 00:00:38]} 29.
Bxg7+ {[%clk 00:02:29]} {[%emt 00:10:46]} Kxg7 {[%clk 00:18:38]} {[%emt
00:00:24]} 30. Rxb4 {[%clk 00:02:56]} {[%emt 00:00:04]} axb4 {[%clk 00:18:39]}
{[%emt 00:00:27]} 31. e7 {[%clk 00:03:23]} {[%emt 00:00:04]} Kxf7 {[%clk
00:18:14]} {[%emt 00:00:56]} 0-1